bitfinex-derivatives/quotes_SOLF0:USTF0_20230902
["timestamp","ask_amount","ask_price","bid_price","bid_amount"]
[1693612803757,20.4564,19.336,19.311,21.3011]
[1693612804555,540.89462042,19.337,19.311,21.3011]
[1693612805057,21.6514,19.336,19.312,0.45454546]
[1693612805355,21.6514,19.336,19.313,0.45454546]
[1693612805554,540.89462042,19.337,19.312,0.45454546]
[1693612805759,21.6514,19.335,19.312,0.45454546]
[1693612806148,540.89462042,19.337,19.31,500.0]
[1693612806360,540.89462042,19.337,19.311,189.18903962]
[1693612806552,40.89462042,19.337,19.312,0.45454546]
[1693612807461,0.22727272,19.336,19.31,500.0]
[1693612807655,40.89462042,19.337,19.312,21.4601]
[1693612807960,40.89462042,19.337,19.313,0.45454546]
[1693612808150,0.81830002,19.326,19.322,0.77355001]
[1693612809661,40.89462042,19.337,19.312,0.45454546]
[1693612809861,25.8585,19.336,19.312,0.45454546]
[1693612810258,25.8585,19.336,19.311,0.45454546]
[1693612810454,25.8585,19.336,19.312,0.45454546]
[1693612810959,25.8585,19.336,19.311,0.45454546]
[1693612811161,25.8585,19.336,19.311,20.66644546]
[1693612811461,25.8585,19.336,19.312,0.45454546]
[1693612811665,25.8585,19.336,19.311,0.45454546]
[1693612812456,500.0,19.328,19.311,0.45454546]
[1693612812657,21.4561,19.327,19.305,0.45454546]
[1693612813058,21.4561,19.327,19.306,0.45454546]
[1693612813361,21.4561,19.327,19.305,189.31662975]
[1693612813554,21.4561,19.327,19.306,0.45454546]
[1693612813755,21.4561,19.327,19.302,189.34920738]
[1693612813959,21.4561,19.327,19.303,189.34920738]
[1693612814162,21.4561,19.327,19.3,540.60838074]
[1693612814163,21.4561,19.327,19.304,0.45454546]
[1693612814462,21.4561,19.327,19.305,0.45454546]
[1693612814662,21.4561,19.327,19.306,0.45454546]
[1693612814859,21.4561,19.327,19.302,0.45454546]
[1693612815166,25.87188,19.326,19.302,9.9709136]
[1693612815364,25.87188,19.326,19.303,0.45454546]
[1693612820167,62.43746645,19.327,19.303,0.45454546]
[1693612820465,62.43746645,19.327,19.303,9.9709136]
[1693612820666,62.43746645,19.327,19.304,9.9709136]
[1693612820968,62.43746645,19.327,19.305,9.9709136]
[1693612821271,62.43746645,19.327,19.306,9.9709136]
[1693612821569,62.43746645,19.327,19.3,540.60838074]
[1693612821570,62.43746645,19.327,19.302,0.45454546]
[1693612821763,62.43746645,19.327,19.301,198.96166875]
[1693612822069,62.43746645,19.327,19.302,9.96866505]
[1693612822269,62.43746645,19.327,19.303,0.45454546]
[1693612822461,62.43746645,19.327,19.303,9.96866505]
[1693612822661,62.43746645,19.327,19.304,9.96866505]
[1693612822869,62.43746645,19.327,19.305,9.96866505]
[1693612823071,62.43746645,19.327,19.306,9.96866505]
[1693612823271,62.43746645,19.327,19.304,24.15990703]
[1693612823568,62.43746645,19.327,19.305,9.96866064]
[1693612823868,62.43746645,19.327,19.306,0.45454546]
[1693612824962,21.4561,19.327,19.306,0.45454546]
[1693612825168,21.4561,19.327,19.309,500.0]
[1693612825367,21.4561,19.327,19.31,9.96574712]
[1693612825568,31.19534969,19.328,19.31,9.96574712]
[1693612825569,31.19534969,19.328,19.311,0.45454546]
[1693612825769,31.19534969,19.328,19.311,9.96574712]
[1693612825972,31.19534969,19.328,19.312,0.45454546]
[1693612826168,31.19534969,19.328,19.312,9.96574712]
[1693612826370,20.1482,19.334,19.313,9.96511006]
[1693612826570,20.1482,19.334,19.314,0.45454546]
[1693612826772,20.1482,19.334,19.315,0.45454546]
[1693612826971,20.1482,19.334,19.316,0.45454546]
[1693612827172,20.1482,19.334,19.311,9.9650483]
[1693612827373,20.1482,19.334,19.312,0.45454546]
[1693612827771,20.1482,19.334,19.311,0.45454546]
[1693612827973,20.1482,19.334,19.312,0.45454546]
[1693612828174,20.1482,19.334,19.313,0.45454546]
[1693612828375,20.1482,19.334,19.311,0.45454546]
[1693612834082,20.1482,19.334,19.312,25.89063]
[1693612834283,20.1482,19.334,19.313,9.9650483]
[1693612834578,20.1482,19.334,19.314,0.45454546]
[1693612836986,20.1482,19.334,19.315,0.45454546]
[1693612837279,20.1482,19.334,19.31,9.51085118]
[1693612837280,293.45042659,19.335,19.316,0.45454546]
[1693612837584,49.46188195,19.333,19.311,0.45454546]
[1693612847090,49.46188195,19.333,19.312,25.89063]
[1693612847292,49.46188195,19.333,19.313,9.96539664]
[1693612847489,49.46188195,19.333,19.314,0.45454546]
[1693612847692,49.46188195,19.333,19.314,9.96539664]
[1693612847892,49.46188195,19.333,19.315,0.45454546]
[1693612851192,49.46188195,19.333,19.314,9.96507545]
[1693612851394,49.46188195,19.333,19.315,0.45454546]
[1693612853704,49.46188195,19.333,19.314,0.45454546]
[1693612854992,49.46188195,19.333,19.315,0.45454546]
[1693612855197,49.46188195,19.333,19.311,0.45454546]
[1693612855397,91.33254929,19.333,19.311,0.45454546]
[1693612856000,91.33254929,19.333,19.312,15.53]
[1693612856300,91.33254929,19.333,19.314,15.53]
[1693612856502,91.33254929,19.333,19.316,15.53]
[1693612856701,91.33254929,19.333,19.311,15.53]
[1693612856999,91.33254929,19.333,19.312,9.9652017]
[1693612857199,91.33254929,19.333,19.314,15.53]
[1693612857395,91.33254929,19.333,19.316,15.53]
[1693612857592,91.33254929,19.333,19.31,15.98454546]
[1693612857795,91.33254929,19.333,19.311,9.96523531]
[1693612857993,91.33254929,19.333,19.312,0.45454546]
[1693612862406,91.33254929,19.333,19.311,9.51068985]
[1693612862597,500.0,19.329,19.31,15.53]
[1693612863302,500.0,19.329,19.309,40.98550724]
[1693612863503,500.0,19.329,19.305,15.53]
[1693612863800,500.0,19.329,19.307,15.53]
[1693612864000,500.0,19.329,19.309,15.53]
[1693612864195,500.0,19.329,19.305,15.53]
[1693612864400,500.0,19.329,19.307,15.53]
[1693612864605,500.0,19.329,19.309,15.53]
[1693612864903,500.0,19.329,19.305,15.53]
[1693612865204,500.0,19.329,19.307,15.53]
[1693612865398,500.0,19.329,19.305,15.53]
[1693612865603,500.0,19.329,19.307,15.53]
[1693612865900,500.0,19.329,19.305,15.53]
[1693612866103,500.0,19.329,19.304,65.6050416]
[1693612866104,500.0,19.329,19.307,15.53]
[1693612866302,500.0,19.329,19.305,15.53]
[1693612866505,0.45454546,19.328,19.307,15.53]
[1693612866711,0.45454546,19.328,19.305,15.53]
[1693612866903,0.45454546,19.328,19.307,15.53]
[1693612867103,0.45454546,19.328,19.305,15.53]
[1693612867308,0.45454546,19.328,19.307,15.53]
[1693612867612,0.45454546,19.328,19.304,65.6050416]
[1693612867613,0.45454546,19.328,19.305,15.53]
[1693612867910,0.45454546,19.328,19.307,15.53]
[1693612868110,0.45454546,19.328,19.305,15.53]
[1693612868311,0.45454546,19.328,19.307,15.53]
[1693612868513,0.45454546,19.328,19.305,15.53]
[1693612868810,0.45454546,19.328,19.307,15.53]
[1693612869005,0.45454546,19.328,19.305,15.53]
[1693612869310,0.45454546,19.328,19.307,15.53]
[1693612869512,0.45454546,19.328,19.305,15.53]
[1693612869710,0.45454546,19.328,19.307,15.53]
[1693612870009,0.45454546,19.328,19.305,15.53]
[1693612870206,0.45454546,19.328,19.304,65.6050416]
[1693612870207,0.45454546,19.328,19.307,15.53]
[1693612870408,25.87054,19.327,19.3,15.53]
[1693612870602,0.45454546,19.326,19.301,9.51616468]
[1693612870805,0.45454546,19.326,19.3,9.51616468]
[1693612871005,26.32642546,19.326,19.301,9.51616468]
[1693612871215,0.45454546,19.325,19.303,15.53]
[1693612871411,0.45454546,19.325,19.299,15.53]
[1693612871412,25.87456,19.324,19.299,15.53]
[1693612871612,0.45454546,19.323,19.3,9.51619013]
[1693612871815,22.14144546,19.323,19.3,9.51619013]
[1693612872016,0.45454546,19.322,19.3,9.51619013]
[1693612872313,22.36724546,19.323,19.3,9.51619013]
[1693612872515,0.45454546,19.322,19.3,9.51619013]
[1693612872917,0.45454546,19.323,19.3,9.51619013]
[1693612873113,500.0,19.32,19.3,9.51619013]
[1693612873314,25.87456,19.324,19.299,15.53]
[1693612873315,0.45454546,19.319,19.299,15.53]
[1693612873508,0.45454546,19.318,19.293,15.53]
[1693612873709,0.45454546,19.318,19.294,9.51723419]
[1693612881023,30.68547925,19.319,19.299,15.53]
[1693612881322,30.68547925,19.319,19.3,9.51723419]
[1693612881526,21.2612,19.318,19.3,9.51723419]
[1693612881928,30.68547925,19.319,19.3,9.51723419]
[1693612882117,21.2612,19.317,19.3,9.51723419]
[1693612882526,30.68547925,19.319,19.3,9.51723419]
[1693612882827,21.2612,19.318,19.3,9.51723419]
[1693612883325,30.68547925,19.319,19.3,9.51723419]
[1693612883525,21.2612,19.318,19.3,9.51723419]
[1693612883929,30.68547925,19.319,19.3,9.51723419]
[1693612884121,21.2612,19.317,19.3,9.51723419]
[1693612884520,30.68547925,19.319,19.3,9.51723419]
[1693612884717,22.1023,19.316,19.3,9.51723419]
[1693612890030,22.1023,19.316,19.3,50.97554593]
[1693612890231,22.1023,19.316,19.301,9.51723419]
[1693612890732,22.1023,19.316,19.303,15.53]
[1693612890929,22.1023,19.316,19.304,9.51723419]
[1693612891130,22.1023,19.316,19.299,37.7228]
[1693612891334,22.1023,19.316,19.3,9.51497459]
[1693612910044,22.1023,19.316,19.3,35.42170459]
[1693612910244,22.1023,19.316,19.301,9.51497459]
[1693612930463,22.1023,19.316,19.303,15.53]
[1693612930664,22.1023,19.316,19.299,63.39839294]
[1693612930665,22.1023,19.316,19.304,9.51497459]
[1693612930864,22.1023,19.316,19.305,9.51497459]
[1693612931066,22.1023,19.316,19.299,63.39839294]
[1693612931363,22.1023,19.316,19.3,9.51483868]
[1693612935762,0.45454546,19.318,19.3,9.51483868]
[1693612950575,0.45454546,19.318,19.3,198.81333888]
[1693612950879,0.45454546,19.318,19.301,198.81333888]
[1693612951075,0.45454546,19.318,19.303,15.54]
[1693612951275,0.45454546,19.318,19.304,9.51483868]
[1693612951476,0.45454546,19.318,19.299,198.81333888]
[1693612951676,0.45454546,19.318,19.3,198.81347989]
[1693612951975,0.45454546,19.318,19.301,198.81347989]
[1693612952175,0.45454546,19.318,19.303,15.54]
[1693612952380,0.45454546,19.318,19.304,9.51497969]
[1693612952579,0.45454546,19.318,19.304,198.81347989]
[1693612952782,0.45454546,19.318,19.305,189.2985002]
[1693612952984,0.45454546,19.318,19.298,15.54]
[1693612953176,0.45454546,19.318,19.299,9.5150007]
[1693612958680,0.45454546,19.318,19.3,20.1382]
[1693612958881,0.45454546,19.318,19.301,9.5150007]
[1693612964888,0.45454546,19.318,19.301,35.4203907]
[1693612965082,0.45454546,19.318,19.303,15.54]
[1693612965384,0.45454546,19.318,19.304,9.5150007]
[1693612965583,878.18837227,19.33,19.307,500.0]
[1693612965584,0.45454546,19.329,19.307,500.0]
[1693612965782,0.45454546,19.329,19.309,15.54]
[1693612966083,0.45454546,19.328,19.31,9.5150007]
[1693612966285,0.45454546,19.332,19.31,9.5150007]
[1693612972282,0.45454546,19.332,19.309,15.54]
[1693612972993,0.45454546,19.332,19.31,9.51301766]
[1693612973290,0.45454546,19.332,19.309,15.54]
[1693612973986,0.45454546,19.332,19.31,9.51301565]
[1693612977790,0.45454546,19.332,19.31,198.63924279]
[1693612977990,41.12914452,19.339,19.316,500.0]
[1693612978290,0.45454546,19.339,19.318,15.53]
[1693612978495,0.45454546,19.341,19.318,15.53]
[1693612991000,0.45454546,19.341,19.318,57.27560495]
[1693613023546,0.45454546,19.341,19.32,15.52]
[1693613023746,0.45454546,19.341,19.318,15.52]
[1693613023946,0.45454546,19.341,19.32,15.52]
[1693613024148,0.45454546,19.341,19.316,500.0]
[1693613024346,0.45454546,19.341,19.32,20.1605]
[1693613024748,0.45454546,19.341,19.316,525.88527]
[1693613025047,0.45454546,19.341,19.318,15.52]
[1693613026444,0.45454546,19.341,19.317,20.1605]
[1693613026445,0.45454546,19.341,19.32,15.52]
[1693613026749,0.45454546,19.341,19.316,567.55641787]
[1693613026950,0.45454546,19.341,19.32,21.0721]
[1693613027651,0.45454546,19.341,19.316,567.55641787]
[1693613027852,0.45454546,19.341,19.318,15.52]
[1693613028050,0.45454546,19.341,19.32,15.52]
[1693613028251,0.45454546,19.341,19.318,15.52]
[1693613028452,0.45454546,19.341,19.32,15.52]
[1693613028648,0.45454546,19.341,19.316,567.55641787]
[1693613028849,0.45454546,19.341,19.32,21.0721]
[1693613029250,0.45454546,19.341,19.316,567.55641787]
[1693613029451,0.45454546,19.341,19.318,15.52]
[1693613029656,0.45454546,19.341,19.32,15.52]
[1693613029956,0.45454546,19.341,19.318,15.52]
[1693613030454,0.45454546,19.341,19.32,15.52]
[1693613030655,0.45454546,19.341,19.318,15.52]
[1693613030857,0.45454546,19.341,19.32,15.52]
[1693613031053,0.45454546,19.341,19.318,15.52]
[1693613031259,0.45454546,19.341,19.32,15.52]
[1693613031453,0.45454546,19.341,19.318,15.52]
[1693613031659,0.45454546,19.341,19.32,15.52]
[1693613031857,0.45454546,19.341,19.318,15.52]
[1693613032059,0.45454546,19.341,19.32,15.52]
[1693613032254,0.45454546,19.341,19.318,15.52]
[1693613032460,0.45454546,19.341,19.32,15.52]
[1693613032758,0.45454546,19.341,19.318,15.52]
[1693613032959,0.45454546,19.341,19.32,15.52]
[1693613033260,0.45454546,19.341,19.318,15.52]
[1693613033459,0.45454546,19.341,19.32,15.52]
[1693613033653,0.45454546,19.341,19.318,15.52]
[1693613033858,0.45454546,19.341,19.32,15.52]
[1693613034059,0.45454546,19.341,19.318,15.52]
[1693613036160,0.45454546,19.341,19.32,15.52]
[1693613036459,0.45454546,19.341,19.318,15.52]
[1693613037959,0.45454546,19.341,19.32,15.52]
[1693613038159,0.45454546,19.341,19.318,15.52]
[1693613038365,0.45454546,19.341,19.32,15.52]
[1693613038565,0.45454546,19.341,19.318,15.52]
[1693613038764,0.45454546,19.341,19.32,15.52]
[1693613039065,0.45454546,19.341,19.318,15.52]
[1693613039366,111.47,19.336,19.329,111.47]
[1693613051974,111.47,19.335,19.328,111.47]
[1693613054674,111.47,19.335,19.328,151.99533608]
[1693613070271,111.47,19.335,19.328,111.47]
[1693613071982,111.47,19.334,19.327,111.47]
[1693613081988,111.47,19.333,19.326,15.52]
[1693613095507,111.47,19.33,19.323,111.47]
[1693613095703,111.47,19.33,19.324,15.52]
[1693613100909,111.47,19.333,19.326,111.47]
[1693613101110,111.47,19.335,19.329,15.52]
[1693613102009,111.47,19.336,19.33,111.47]
[1693613102310,138.50874416,19.336,19.33,111.47]
[1693613103512,111.47,19.336,19.33,111.47]
[1693613121934,111.47,19.335,19.328,126.99]
[1693613124236,111.47,19.332,19.326,15.52]
[1693613124935,111.47,19.332,19.325,111.47]
[1693613129028,111.47,19.334,19.327,111.47]
[1693613129634,111.47,19.33,19.322,111.47]
[1693613129838,0.45454546,19.329,19.322,111.47]
[1693613131337,0.45454546,19.329,19.327,0.06235451]
[1693613131842,0.45454546,19.329,19.323,0.12473398]
[1693613132036,111.47,19.328,19.323,0.12473398]
[1693613132733,111.47,19.328,19.32,111.47]
[1693613133838,0.06235451,19.327,19.32,111.47]
[1693613135835,0.06235451,19.327,19.323,0.12473396]
[1693613141243,111.47,19.325,19.319,0.18713838]
[1693613142045,111.47,19.323,19.316,111.47]
[1693613142936,111.47,19.32,19.311,111.78202216]
[1693613143141,29.91786732,19.324,19.311,0.31202216]
[1693613143142,111.47,19.316,19.311,0.31202216]
[1693613146545,111.47,19.316,19.307,153.14701862]
[1693613149847,111.47,19.317,19.309,111.47]
[1693613150647,111.47,19.32,19.313,111.47]
[1693613150849,111.47,19.32,19.307,41.67701862]
[1693613150850,29.91786732,19.324,19.318,111.47]
[1693613155954,111.47,19.325,19.318,111.47]
[1693613159156,111.47,19.325,19.317,111.47]
[1693613160050,111.47,19.328,19.321,111.47]
[1693613166764,111.47,19.325,19.318,111.47]
[1693613171968,111.47,19.324,19.317,111.47]
[1693613182072,111.47,19.321,19.315,40.44283496]
[1693613182275,111.47,19.321,19.314,111.47]
[1693613186873,111.47,19.324,19.317,111.47]
[1693613191779,111.47,19.324,19.312,21.0109]
[1693613191978,111.47,19.325,19.318,111.47]
[1693613192278,111.47,19.328,19.321,111.47]
[1693613192477,111.47,19.333,19.326,111.47]
[1693613192779,0.45454546,19.342,19.329,111.47]
[1693613192780,111.47,19.336,19.329,111.47]
[1693613193579,111.47,19.336,19.33,15.52]
[1693613203483,111.47,19.339,19.331,111.47]
[1693613212194,111.47,19.339,19.332,111.47]
[1693613218197,111.47,19.34,19.333,111.47]
[1693613222000,111.47,19.339,19.332,111.47]
[1693613223301,111.47,19.339,19.328,21.0399]
[1693613223500,111.47,19.345,19.338,111.47]
[1693613223699,1804.18097969,19.379,19.325,15.52]
[1693613223700,111.47,19.348,19.341,111.47]
[1693613232207,132.3749,19.349,19.343,111.47]
[1693613232604,111.47,19.349,19.343,111.47]
[1693613240214,111.47,19.347,19.339,111.47]
[1693613248718,0.45454546,19.356,19.342,111.47]
[1693613248915,111.47,19.349,19.343,15.51]
[1693613249114,111.47,19.352,19.346,15.51]
[1693613249315,111.92454546,19.353,19.346,111.47]
[1693613249621,111.47,19.353,19.346,111.47]
[1693613254616,0.45454546,19.354,19.343,111.47]
[1693613254921,111.47,19.351,19.343,111.47]
[1693613262030,111.47,19.352,19.345,111.47]
[1693613264429,111.92454546,19.355,19.348,111.47]
[1693613264630,0.45454546,19.354,19.348,111.47]
[1693613270335,111.47,19.355,19.348,111.47]
[1693613274436,111.47,19.354,19.347,111.47]
[1693613279538,0.45454546,19.356,19.348,111.47]
[1693613279539,111.47,19.355,19.348,111.47]
[1693613287446,111.47,19.359,19.352,111.47]
[1693613291955,153.15268733,19.36,19.353,111.47]
[1693613296054,111.47,19.36,19.354,15.5]
[1693613299858,111.47,19.36,19.353,111.47]
[1693613301959,111.47,19.361,19.354,111.47]
[1693613307462,111.47,19.363,19.355,111.47]
[1693613322074,111.47,19.364,19.357,111.47]
[1693613334485,181.46372666,19.365,19.358,111.47]
[1693613341984,111.47,19.364,19.357,111.47]
[1693613364803,111.47,19.362,19.354,111.47]
[1693613372012,111.47,19.36,19.353,111.47]
[1693613383130,111.47,19.356,19.349,111.47]
[1693613387428,111.47,19.359,19.352,111.47]
[1693613388129,111.47,19.359,19.353,15.5]
[1693613388729,111.47,19.357,19.351,15.5]
[1693613391933,111.47,19.359,19.352,111.47]
[1693613398536,111.47,19.356,19.348,111.47]
[1693613410742,111.47,19.358,19.351,111.47]
[1693613421959,111.47,19.36,19.353,111.47]
[1693613429856,111.47,19.359,19.352,111.47]
[1693613435566,111.47,19.357,19.349,152.15181817]
[1693613435759,111.47,19.357,19.349,111.47]
[1693613436667,111.47,19.354,19.346,111.47]
[1693613441970,111.47,19.353,19.345,111.47]
[1693613445580,111.47,19.356,19.348,111.47]
[1693613448681,111.47,19.356,19.351,15.5]
[1693613451982,111.47,19.358,19.351,126.97]
[1693613452883,111.47,19.358,19.351,111.47]
[1693613460385,111.47,19.355,19.348,15.5]
[1693613462094,111.47,19.354,19.346,111.47]
[1693613469897,111.47,19.355,19.348,111.47]
[1693613480811,111.47,19.355,19.348,126.97]
[1693613490315,111.47,19.356,19.349,111.47]
[1693613492014,111.47,19.36,19.352,111.47]
[1693613495115,111.47,19.357,19.349,111.47]
[1693613502921,111.47,19.358,19.351,111.47]
[1693613517934,111.47,19.361,19.354,111.47]
[1693613531943,111.47,19.36,19.352,153.07826873]
[1693613532137,111.47,19.36,19.352,111.47]
[1693613533444,0.45454546,19.362,19.348,15.5]
[1693613533745,111.47,19.368,19.36,111.47]
[1693613533941,111.47,19.368,19.361,15.5]
[1693613539343,111.47,19.371,19.364,15.5]
[1693613541948,111.47,19.372,19.364,111.47]
[1693613542149,111.92454546,19.374,19.367,111.47]
[1693613542345,0.45454546,19.373,19.367,111.47]
[1693613545554,111.47,19.374,19.367,111.47]
[1693613550252,111.47,19.374,19.368,111.47]
[1693613550457,111.47,19.375,19.368,111.47]
[1693613553857,111.92454546,19.376,19.368,111.47]
[1693613554058,0.45454546,19.375,19.368,111.47]
[1693613556263,864.83721634,19.39,19.361,40.47933883]
[1693613556457,575.0,19.41,19.39,15.49]
[1693613556659,1.89554421,19.409,19.406,111.47]
[1693613556862,132.9655,19.414,19.404,111.47]
[1693613557063,111.47,19.408,19.398,111.47]
[1693613557664,111.47,19.408,19.399,277.28133732]
[1693613558461,111.47,19.405,19.4,277.28133732]
[1693613558665,111.47,19.405,19.401,277.28133732]
[1693613558860,24.81820659,19.405,19.402,277.28133732]
[1693613559066,111.47,19.405,19.403,277.28133732]
[1693613559365,111.47,19.405,19.404,252.72373193]
[1693613559661,111.47,19.405,19.396,111.47]
[1693613560665,111.47,19.402,19.393,111.47]
[1693613562358,123.06,19.405,19.391,123.06]
[1693613562969,29.58562797,19.406,19.394,123.06]
[1693613565364,123.06,19.404,19.391,123.06]
[1693613565667,25.76655,19.405,19.393,123.06]
[1693613565868,41.77411035,19.41,19.392,15.49]
[1693613566069,123.06,19.412,19.398,123.06]
[1693613566272,540.65600824,19.411,19.398,123.06]
[1693613567371,0.06210705,19.404,19.398,123.06]
[1693613572176,0.06210705,19.404,19.4,0.12423894]
[1693613581475,663.71600824,19.411,19.399,277.27584914]
[1693613582381,0.06210705,19.404,19.399,387.96584914]
[1693613582579,0.06210705,19.404,19.4,277.27584914]
[1693613587088,0.06210705,19.404,19.4,277.40008808]
[1693613587288,0.06210705,19.404,19.401,277.24246743]
[1693613587484,0.06210705,19.404,19.402,277.24246743]
[1693613587689,0.06210705,19.404,19.4,0.12423894]
[1693613588281,0.06210705,19.404,19.4,277.36703282]
[1693613588479,0.06210705,19.404,19.401,277.24279388]
[1693613588682,0.06210705,19.404,19.4,0.12423894]
[1693613588683,0.06210705,19.404,19.402,277.24279388]
[1693613588880,0.06210705,19.404,19.4,0.12423894]
[1693613589080,0.06210705,19.404,19.4,277.36689491]
[1693613590381,0.06210705,19.404,19.4,0.12423894]
[1693613602486,110.69,19.403,19.4,0.12423894]
[1693613611395,110.69,19.403,19.394,110.69]
[1693613612090,110.69,19.401,19.392,131.9686]
[1693613612297,110.69,19.401,19.392,110.69]
[1693613613789,110.69,19.401,19.392,111.14454546]
[1693613613999,110.69,19.401,19.392,110.69]
[1693613616898,110.69,19.401,19.4,0.12423894]
[1693613617795,110.69,19.401,19.396,0.18639569]
[1693613622102,110.69,19.399,19.396,0.18639569]
[1693613626304,110.69,19.399,19.392,277.26091122]
[1693613626496,110.69,19.399,19.393,277.26091122]
[1693613626701,110.69,19.399,19.394,277.26091122]
[1693613626901,110.69,19.399,19.395,277.26091122]
[1693613627199,110.69,19.399,19.396,277.26091122]
[1693613627404,110.69,19.399,19.397,277.26091122]
[1693613627704,110.69,19.399,19.391,0.45454546]
[1693613628198,110.69,19.399,19.391,277.77234135]
[1693613629204,110.69,19.397,19.391,277.77234135]
[1693613629403,110.69,19.397,19.392,277.31779589]
[1693613629603,110.69,19.397,19.393,277.31779589]
[1693613629803,110.69,19.397,19.394,277.31779589]
[1693613630106,110.69,19.397,19.395,277.31779589]
[1693613630403,110.69,19.397,19.396,277.31779589]
[1693613630803,110.69,19.397,19.39,277.77234135]
[1693613631000,110.69,19.397,19.391,0.45454546]
[1693613632107,41.61649484,19.399,19.396,0.12426454]
[1693613632309,0.06211985,19.4,19.396,0.12426454]
[1693613632310,110.69,19.397,19.396,0.12426454]
[1693613633409,110.69,19.397,19.396,277.44206043]
[1693613633707,110.69,19.397,19.396,0.12426454]
[1693613636309,110.69,19.397,19.392,0.18643411]
[1693613636506,110.69,19.393,19.392,0.18643411]
[1693613637012,110.69,19.393,19.388,0.24862856]
[1693613637307,110.69,19.389,19.388,0.24862856]
[1693613641610,110.69,19.389,19.385,277.31779589]
[1693613641812,110.69,19.388,19.386,277.31779589]
[1693613642113,110.69,19.388,19.381,20.1551]
[1693613642114,110.69,19.387,19.381,20.1551]
[1693613642413,110.69,19.387,19.382,277.33757771]
[1693613642815,110.69,19.387,19.383,277.33757771]
[1693613643017,110.69,19.387,19.384,277.33757771]
[1693613643314,110.69,19.387,19.385,277.33757771]
[1693613643615,110.69,19.387,19.386,277.33757771]
[1693613644113,110.69,19.387,19.381,277.33757771]
[1693613644417,110.69,19.387,19.382,277.33757771]
[1693613644719,110.69,19.387,19.383,277.33757771]
[1693613644911,110.69,19.387,19.384,277.33757771]
[1693613645111,110.69,19.387,19.385,277.33757771]
[1693613645410,110.69,19.387,19.386,277.33757771]
[1693613645809,110.69,19.387,19.381,277.33757771]
[1693613646012,110.69,19.387,19.382,277.33757771]
[1693613646208,110.69,19.387,19.383,277.33757771]
[1693613646408,110.69,19.387,19.384,277.33757771]
[1693613646606,110.69,19.387,19.385,277.33757771]
[1693613646815,110.69,19.387,19.386,277.33757771]
[1693613647117,110.69,19.387,19.384,0.18651099]
[1693613651921,110.69,19.386,19.384,0.18651099]
[1693613653321,110.69,19.385,19.384,0.18651099]
[1693613654516,110.69,19.385,19.384,277.5240887]
[1693613654916,110.69,19.385,19.384,0.18651099]
[1693613656623,110.69,19.385,19.379,0.45454546]
[1693613657023,110.69,19.385,19.378,0.45454546]
[1693613661929,110.69,19.387,19.379,110.69]
[1693613662129,110.69,19.387,19.384,0.18651099]
[1693613669430,110.69,19.389,19.384,0.18651099]
[1693613669637,110.75214547,19.392,19.384,0.18651099]
[1693613670333,110.75214547,19.392,19.384,277.5240887]
[1693613672028,110.69,19.391,19.384,277.5240887]
[1693613682046,110.69,19.39,19.384,277.5240887]
[1693613682245,110.69,19.39,19.385,277.33757771]
[1693613682442,110.69,19.39,19.386,277.33757771]
[1693613682644,110.69,19.39,19.387,277.33757771]
[1693613682846,110.69,19.39,19.388,277.33757771]
[1693613683046,110.69,19.39,19.389,277.33757771]
[1693613683345,110.69,19.39,19.384,0.18651099]
[1693613686448,110.69,19.39,19.383,277.33757771]
[1693613692053,110.69,19.389,19.383,277.33757771]
[1693613692254,0.06214547,19.392,19.388,0.12431578]